Cogmind - Beta 9.6 @@@ ROGUE MODE // 2020.07.02 @ 00:52:45 Player: Kenzurith Result: Destroyed by G-47 Trooper with Particle Gun Performance ------------- Evolutions (3) 1500 Regions Visited (10) 2000 Robots Destroyed (91) 455 Value Destroyed (4056) 4056 Prototype IDs (1) 20 Alien Tech Used (0) 0 Bonus (2091) 2091 TOTAL SCORE: 10122 Bonus ------- Triggered High Security 500 High Alert Combat Kills 925 Follower Combat Kills 436 Entered Garrisons 200 Used RIF Installer 500 Friendly Fire -470 Cogmind --------- Core Integrity 0/700 Matter 300/300 Energy 100/100 System Corruption 0% Temperature Cool (9) Movement Walking (120) Location -7/Lower Caves Parts ------- > --- POWER (1) -------- (None) > --- PROPULSION (3) --- Carbon-fiber Leg > --- UTILITY (6) ------ Relay Coupler [Sentry] (24) > --- WEAPON (3) ------- (None) > --- INVENTORY (4) ---- Heavy Treads Peak State ------------ > --- POWER ------------ Antimatter Reactor > --- PROPULSION ------- Heavy Treads Improved Carbon-fiber Leg > --- UTILITY ---------- Improved Cooling System Humpback Improved Targeting Computer Hardened Heavy Armor Plating > --- WEAPON ----------- Heavy Beamcaster Heavy Beamcaster Advanced Assault Cannon > --- INVENTORY -------- Reinforced Antimatter Reactor Heavy Treads Heavy Treads Humpback High-capacity Matter Pod Relay Coupler [NC] Relay Coupler [Swarmer] Relay Coupler [Grunt] Relay Coupler [Grunt] Relay Coupler [Sentry] Relay Coupler [Sentry] Relay Coupler [Behemoth] Heavy Beamcaster Advanced Assault Cannon Bore Cannon Bore Cannon Bore Cannon Grenade Launcher Improved Datajack Impact Mace Axe [Rating: 64] Favorites ----------- Power Antimatter Reactor Engine Ion Engine Power Core Light Nuclear Core Reactor Antimatter Reactor Propulsion Light Treads Treads Light Treads Leg Carbon-fiber Leg Utility Humpback Device Improved Heat Sink Storage Humpback Processor Improved Targeting Computer Hackware Relay Coupler [NC] Protection Hardened Heavy Armor Plating Weapon Particle Gun Energy Gun Particle Gun Ballistic Gun Light Assault Rifle Ballistic Cannon Bore Cannon Launcher Grenade Launcher Impact Weapon Impact Mace Slashing Weapon Axe Special Melee Weapon Improved Datajack Build | -11 -10 -10 -10 -9 -8 -8 -7 -7 -7 -7 ------- Run | Scr Mat Min Exi Min Mat Gar Fac Was Fac Low Slots Evolved 6 | . . . . . 4 . 2 . . . Power . | . . . . . . . . . . . Propulsion 1 | . . . . . 1 . . . . . Utility 4 | . . . . . 2 . 2 . . . Weapon 1 | . . . . . 1 . . . . . Parts Attached 119 | . 2 2 1 5 20 35 19 19 13 3 Power 14 | . . 1 . . 4 3 4 1 1 . Engine 11 | . . 1 . . 3 2 4 . 1 . Core 2 | . . . . . 1 1 . . . . Reactor 1 | . . . . . . . . 1 . . Propulsion 29 | . 2 . . . 3 11 5 5 1 2 Treads 9 | . 2 . . . 3 1 . 1 1 1 Leg 20 | . . . . . . 10 5 4 . 1 Wheel . | . . . . . . . . . . . Hover . | . . . . . . . . . . . Flight . | . . . . . . . . . . . Utility 28 | . . 1 1 . 5 6 3 8 4 . Device 13 | . . 1 . . 3 5 1 2 1 . Storage 2 | . . . 1 . . 1 . . . . Processor 1 | . . . . . . . 1 . . . Hackware 3 | . . . . . . . . 1 2 . Protection 9 | . . . . . 2 . 1 5 1 . Artifact . | . . . . . . . . . . . Weapon 48 | . . . . 5 8 15 7 5 7 1 Energy Gun 21 | . . . . 2 5 7 4 2 1 . Energy Cannon . | . . . . . . . . . . . Ballistic Gun 12 | . . . . 2 2 6 1 . . 1 Ballistic Cannon 4 | . . . . . . . . . 4 . Launcher 4 | . . . . 1 1 2 . . . . Special Weapon . | . . . . . . . . . . . Impact Weapon 2 | . . . . . . . 1 . 1 . Slashing Weapon 1 | . . . . . . . . 1 . . Piercing Weapon . | . . . . . . . . . . . Special Melee Weapon 4 | . . . . . . . 1 2 1 . Unidentified Prototypes 1 | . . . . . . . 1 . . . Parts Lost 29 | . . . . 1 4 8 . 5 6 5 Power 3 | . . . . . 1 . . . 1 1 Propulsion 8 | . . . . . 2 2 . 2 1 1 Utility 7 | . . . . . 1 1 . 2 2 1 Weapon 11 | . . . . 1 . 5 . 1 2 2 Highest Loss Streak 6 | . . . . 1 3 5 . 5 6 4 Average Slot Usage (%) 81 | . 84 99 96 85 86 89 88 78 74 36 Engine 5 | . 14 14 14 14 6 4 3 2 . . Core 1 | . . . . . 2 4 3 . . . Reactor 1 | . . . . . . . . 4 6 . Treads 11 | . 7 28 28 28 26 8 . 2 13 6 Leg 10 | . 20 . . . . 18 23 16 1 . Device 10 | . . 13 10 . 9 17 20 5 6 . Storage 8 | . 14 14 13 14 9 9 7 7 6 . Processor 2 | . . . . . . . . 7 6 . Hackware 1 | . . . . . . . . 1 . 14 Protection 3 | . . . . . 5 . 4 7 6 . Energy Gun 11 | . 14 14 14 12 9 15 14 4 13 . Ballistic Gun 8 | . 14 14 14 15 17 11 7 . . 5 Ballistic Cannon 1 | . . . . . . . . . 7 . Slashing Weapon 1 | . . . . . . . . 6 . . Special Melee Weapon 1 | . . . . . . . . 7 . . Naked Turns 3 | . . . . . . . . . 3 . Heaviest Build 139 | 13 13 14 89 89 98 98 111 123 139 13 Greatest Support 92 | 20 40 40 40 40 60 63 45 70 92 70 Greatest Overweight (x) 4 | . . . 2 2 1 3 2 3 4 . Average Overweight (x) 1 | . . . . 2 1 2 2 1 . . Largest Inventory Capacity 24 | . 6 6 24 24 24 24 24 24 24 4 Average Capacity 20 | . 6 6 10 24 24 24 24 24 23 4 Most Carried 24 | . 6 6 14 18 24 24 24 24 24 2 Average Carried 19 | . 5 6 7 14 22 23 23 22 23 2 Final Capacity 24 | 6 6 6 24 24 24 24 24 24 4 4 Final Carried 24 | 6 6 6 13 18 24 24 24 24 4 2 Class Distribution -------------------- 28% | Scavenger-Gunner 20% | Bothacker-Mutant 18% | Mutant 12% | Bothacker-Gunner 7% | Hauler-Mutant 5% | Scavenger-Tank 4% | Bothacker-Tank 3% | Scavenger-Mutant Dominant Class ---------------- Mutant | -10/Materials Mutant | -10/Mines Mutant | -10/Exiles Hauler-Mutant | -9/Mines Scavenger-Tank | -8/Materials Scavenger-Gunner | -8/Garrison Bothacker-Tank | -7/Factory Bothacker-Mutant | -7/Waste Bothacker-Gunner | -7/Factory Mutant | -7/Lower Caves Resources | -11 -10 -10 -10 -9 -8 -8 -7 -7 -7 -7 ----------- Run | Scr Mat Min Exi Min Mat Gar Fac Was Fac Low Matter Collected 2103 | 188 41 89 20 100 335 516 206 217 276 115 Remotely . | . . . . . . . . . . . Salvage Created 4046 | . 57 410 . 129 714 768 206 858 736 168 Parts 200 | . 2 19 . 20 41 39 9 16 48 6 Haulers Intercepted 2 | . 1 . . . . . . . 1 . Recyclers Shooed 3 | . . 2 . . 1 . . . . . Parts Field Recycled . | . . . . . . . . . . . Retrieved Matter . | . . . . . . . . . . . Parts Self-Destructed 4 | . . . . . . . . . . 4 Prevented 1 | . . . . . . . . . . 1 Kills | -11 -10 -10 -10 -9 -8 -8 -7 -7 -7 -7 ------- Run | Scr Mat Min Exi Min Mat Gar Fac Was Fac Low Combat Hostiles Destroyed 73 | . . 6 . 11 14 20 2 3 12 5 Melee 6 | . . . . . . . . 3 . 3 Guns 43 | . . 5 . 8 12 15 2 . 1 . Cannons 8 | . . . . . . . . . 8 . AOE 14 | . . 1 . 3 2 5 . . 3 . Classes Destroyed 14 | . 1 3 . 1 4 1 . 2 2 . Worker 3 | . . . . . . . . . 3 . Builder 6 | . . . . . 1 . . . 5 . Tunneler 1 | . . 1 . . . . . . . . Hauler 2 | . 1 . . . . . . . 1 . Recycler 2 | . . 1 . . . . 1 . . . Mechanic 1 | . . . . . . . . . 1 . Operator 2 | . . . . . 1 . 1 . . . Swarmer 18 | . . . . 11 . 4 . . . 3 Grunt 39 | . . 6 . . 10 15 . . 6 2 Duelist 1 | . . . . . . 1 . . . . Sentry 8 | . . . . . 3 . 1 . 4 . Hunter 4 | . . . . . 1 . 1 . 2 . Compactor 3 | . . . . . . . . 3 . . Martyr 1 | . . . . . . . . 1 . . Best Kill Streak 9 | . 1 2 . 3 4 6 2 1 9 2 Combat Bots Only 6 | . . 2 . 3 4 6 1 1 4 2 Max Kills in Single Turn 8 | . 1 2 . 2 1 4 1 1 8 1 Gunslinging 1 | . . . . 1 . 1 . . . . Exploded 4 | . . 1 . 1 1 4 . . 3 . Melee 1 | . . . . . . . . 1 . 1 Uniques/NPCs Destroyed . | . . . . . . . . . . . Combat | -11 -10 -10 -10 -9 -8 -8 -7 -7 -7 -7 -------- Run | Scr Mat Min Exi Min Mat Gar Fac Was Fac Low Damage Taken 6526 | . . 297 . 173 812 1509 281 200 2181 1073 Core 1098 | . . 89 . 40 56 206 7 . 394 306 Absorbed by Shields . | . . . . . . . . . . . Reduced by Siege Mode 31 | . . . . . . . . . 31 . Core Remaining (%) 66 | 100 . . . 48 . 52 . . . . Volleys Fired 236 | . 3 23 . 16 60 79 13 4 36 2 Largest 3 | . 2 2 . 2 3 3 3 1 3 1 Hottest 219 | . 60 60 . 60 150 170 177 80 219 23 Shots Fired 555 | . 6 46 . 29 174 187 38 4 69 2 Gun 505 | . 6 46 . 26 172 184 38 4 27 2 Cannon 42 | . . . . . . . . . 42 . Launcher 8 | . . . . 3 2 3 . . . . Special . | . . . . . . . . . . . Kinetic 299 | . 3 23 . 14 124 78 13 . 42 2 Thermal 189 | . . . . . 48 85 25 4 27 . Explosive 8 | . . . . 3 2 3 . . . . Electromagnetic 59 | . 3 23 . 12 . 21 . . . . Robot Hit Streak 19 | . 2 19 . 4 16 18 5 5 14 4 Robot Miss Streak 5 | . 3 3 . 4 4 3 4 1 5 1 Penetration Max 1 | . . . . . . . . . 1 . Secondary Targets 8 | . . . . 2 1 5 . . . . Max Gunslinging Chain 1 | . . . . 1 1 1 . . . . Shots Hit Robots 425 | . 2 37 . 12 125 107 29 70 29 14 Core Hits 200 | . 2 17 . 12 57 55 15 9 29 4 Critical Hits 14 | . . 1 . . 1 . . 1 11 . Critical Kills 8 | . . 1 . . . . . . 7 . Critical Parts Destroyed 2 | . . . . . 1 . . . 1 . Melee Attacks 86 | . . . . . . . 1 67 . 18 Impact 18 | . . . . . . . . . . 18 Slashing 58 | . . . . . . . . 58 . . Piercing . | . . . . . . . . . . . Sneak Attacks 61 | . . . . . . . 1 60 . . Combat Hostiles 57 | . . . . . . . . 57 . . Follow-up Attacks . | . . . . . . . . . . . Damage Inflicted 9739 | . 25 557 . 375 1284 1616 421 3310 1701 450 Guns 3940 | . 25 477 . 141 1102 1328 421 136 298 12 Cannons 567 | . . . . . . . . . 567 . Explosions 1576 | . . 80 . 234 182 288 . . 792 . Melee 3612 | . . . . . . . . 3174 . 438 Ramming 44 | . . . . . . . . . 44 . Kinetic 2141 | . . 213 . 42 620 543 144 . 567 12 Thermal 2058 | . . 80 . . 482 785 277 136 298 . Explosive 1496 | . . . . 234 182 288 . . 792 . Electromagnetic 388 | . 25 264 . 99 . . . . . . Impact 438 | . . . . . . . . . . 438 Slashing 3174 | . . . . . . . . 3174 . . Piercing . | . . . . . . . . . . . Highest Corruption . | . . . . . . . . . . . Average Corruption . | . . . . . . . . . . . Corruption Purged . | . . . . . . . . . . . Overload Shots . | . . . . . . . . . . . Overflow Damage 204 | . . . . 8 . . . 90 82 24 Projectiles 22 | . . . . . . . . . 22 . Explosions 68 | . . . . 8 . . . . 60 . Melee 114 | . . . . . . . . 90 . 24 Knockbacks 4 | . . . . . . . . . . 4 Impact 4 | . . . . . . . . . . 4 Kinetic . | . . . . . . . . . . . Secondary . | . . . . . . . . . . . Self-Inflicted Damage 56 | . . 33 . . . 23 . . . . Shots 2 | . . 1 . . . 1 . . . . Rammed 4 | . . . . . . . . . 4 . Targets Rammed 4 | . . . . . . . . . 4 . Kicked . | . . . . . . . . . . . Crushed . | . . . . . . . . . . . Highest Temperature 488 | . . 75 . 40 135 112 18 95 488 . Average Temperature 71 | . . 46 . 17 43 37 9 41 143 . Received Heat Transfer 2376 | . . 159 . . 378 756 120 . 621 342 Effects 2 | . . . . . . . . . 2 . Interference 2 | . . . . . . . . . 2 . Siege Activations 1 | . . . . . . . . . 1 . Total Turns 8 | . . . . . . . . . 8 . Longest Duration 8 | . . . . . . . . . 8 . Robots Corrupted . | . . . . . . . . . . . Combat Hostiles . | . . . . . . . . . . . Parts Fried 2 | . . . . . . . . . . 2 Impact Corruptions 4 | . . . . . . . . . . 4 Robots Melted . | . . . . . . . . . . . Combat Hostiles . | . . . . . . . . . . . Parts Melted 4 | . . . . . . 2 2 . . . Heat Transferred 4220 | . . 50 . . 1147 1635 607 300 481 . Parts Sabotaged . | . . . . . . . . . . . Parts Stolen . | . . . . . . . . . . . Parts Stripped . | . . . . . . . . . . . Power Chain Reactions 1 | . . 1 . . . . . . . . Missiles Intercepted . | . . . . . . . . . . . Alert | -11 -10 -10 -10 -9 -8 -8 -7 -7 -7 -7 ------- Run | Scr Mat Min Exi Min Mat Gar Fac Was Fac Low Peak Influence 1833 | . 33 187 . 265 266 889 526 1833 1812 . Average Influence 765 | . 19 132 . 95 145 629 437 1362 1321 . Maximum Alert Level 5 | . . . . 1 1 3 2 5 5 . Low Security (%) 21 | . 100 100 . 87 73 3 . 4 . . Level 1 13 | . . . . 12 26 16 35 7 . . Level 2 16 | . . . . . . 32 64 4 . . Level 3 18 | . . . . . . 47 . 4 18 . Level 4 18 | . . . . . . . . 32 67 . Level 5 9 | . . . . . . . . 47 2 . High Security 1 | . . . . . . . . . 10 . Max Security . | . . . . . . . . . . . Squads Dispatched 17 | . . . . . 6 . 2 . 9 . Investigation 3 | . . . . . 1 . 1 . 1 . Extermination 2 | . . . . . . . . . 2 . Reinforcement 2 | . . . . . 1 . 1 . . . Assault 6 | . . . . . . . . . 6 . Garrison 4 | . . . . . 4 . . . . . Intercept . | . . . . . . . . . . . Construction Impeded . | . . . . . . . . . . . Haulers Reinforced . | . . . . . . . . . . . Stealth | -11 -10 -10 -10 -9 -8 -8 -7 -7 -7 -7 --------- Run | Scr Mat Min Exi Min Mat Gar Fac Was Fac Low Distress Signals 3 | . . 1 . . 1 . . . 1 . Communications Jammed . | . . . . . . . . . . . Distress Signals . | . . . . . . . . . . . Times Spotted 138 | . 3 7 . 14 33 21 12 6 35 7 Peak Tracking Total 11 | . 2 2 . 4 5 5 4 3 11 4 Tactical Retreats 4 | . . 1 . 1 2 . . . . . Traps | -11 -10 -10 -10 -9 -8 -8 -7 -7 -7 -7 ------- Run | Scr Mat Min Exi Min Mat Gar Fac Was Fac Low Traps Triggered 13 | . . . . . . 11 2 . . . Indirectly . | . . . . . . . . . . . Trap Hack Attempts . | . . . . . . . . . . . Triggered . | . . . . . . . . . . . Disarmed . | . . . . . . . . . . . Reprogrammed . | . . . . . . . . . . . Reused . | . . . . . . . . . . . Traps Extracted . | . . . . . . . . . . . Installed . | . . . . . . . . . . . Triggered . | . . . . . . . . . . . Machines | -11 -10 -10 -10 -9 -8 -8 -7 -7 -7 -7 ---------- Run | Scr Mat Min Exi Min Mat Gar Fac Was Fac Low Machines Disabled 16 | . . . . . . 6 . . 10 . Max in Single Turn 9 | . . . . . . 2 . . 9 . Garrison Access 1 | . . . . . . . . . 1 . Garrison Relay 4 | . . . . . . 4 . . . . Phase Generator 1 | . . . . . . 1 . . . . Machines Sabotaged . | . . . . . . . . . . . Garrisons Compromised . | . . . . . . . . . . . Overloaded Fab Kills . | . . . . . . . . . . . Fab Network Shutdowns . | . . . . . . . . . . . Hacking | -11 -10 -10 -10 -9 -8 -8 -7 -7 -7 -7 --------- Run | Scr Mat Min Exi Min Mat Gar Fac Was Fac Low Machines Accessed 9 | . 1 . 1 . 2 . 2 . 3 . Terminals 6 | . 1 . . . 1 . 2 . 2 . Fabricators . | . . . . . . . . . . . Repair Stations . | . . . . . . . . . . . Recycling Units . | . . . . . . . . . . . Scanalyzers 1 | . . . . . . . . . 1 . Garrison Access 1 | . . . . . 1 . . . . . Total Hacks 18 | . 3 . 1 . 5 . 3 . 6 . Successful 7 | . 2 . 1 . 2 . 1 . 1 . Failed 11 | . 1 . . . 3 . 2 . 5 . Catastrophic 3 | . . . . . . . 1 . 2 . Database Lockouts . | . . . . . . . . . . . Manual 13 | . 3 . . . 4 . 3 . 3 . Terminals 11 | . 3 . . . 2 . 3 . 3 . Fabricators . | . . . . . . . . . . . Repair Stations . | . . . . . . . . . . . Recycling Units . | . . . . . . . . . . . Scanalyzers 3 | . . . . . . . . . 3 . Garrison Access 3 | . . . . . 3 . . . . . Terminal Hacks 2 | . 1 . 1 . . . . . . . Record 1 | . . . 1 . . . . . . . Robot Analysis 1 | . 1 . . . . . . . . . Fabricator Hacks . | . . . . . . . . . . . Repair Station Hacks . | . . . . . . . . . . . Recycling Unit Hacks . | . . . . . . . . . . . Scanalyzer 1 | . . . . . . . . . 1 . Insert Component 1 | . . . . . . . . . 1 . Garrison Access Hacks 1 | . . . . . 1 . . . . . Unlock Access 1 | . . . . . 1 . . . . . Unauthorized Hacks 3 | . 1 . . . 1 . 1 . . . Terminals 3 | . 1 . . . 1 . 1 . . . Botnet 2 | . 1 . . . . . 1 . . . Operators 1 | . . . . . 1 . . . . . Fabricators . | . . . . . . . . . . . Repair Stations . | . . . . . . . . . . . Recycling Units . | . . . . . . . . . . . Scanalyzers . | . . . . . . . . . . . Garrison Access . | . . . . . . . . . . . Data Cores Recovered . | . . . . . . . . . . . Used . | . . . . . . . . . . . Hacking Detections 8 | . 1 . . . 2 . 2 . 3 . Full Trace Events 2 | . . . . . 1 . . . 1 . Feedback Events . | . . . . . . . . . . . Feedback Blocked . | . . . . . . . . . . . Robot Schematics Acquired . | . . . . . . . . . . . Robots Built . | . . . . . . . . . . . Matter . | . . . . . . . . . . . Time . | . . . . . . . . . . . Total Robot Build Rating . | . . . . . . . . . . . Part Schematics Acquired . | . . . . . . . . . . . Parts Built . | . . . . . . . . . . . Matter . | . . . . . . . . . . . Time . | . . . . . . . . . . . Total Part Build Rating . | . . . . . . . . . . . Parts Repaired . | . . . . . . . . . . . Time . | . . . . . . . . . . . Parts Recycled . | . . . . . . . . . . . Recycled Matter . | . . . . . . . . . . . Retrieved Matter . | . . . . . . . . . . . Retrieved Components . | . . . . . . . . . . . Parts Scanalyzed 1 | . . . . . . . . . 1 . Part Schematics Acquired . | . . . . . . . . . . . Parts Damaged . | . . . . . . . . . . . Bothacking | -11 -10 -10 -10 -9 -8 -8 -7 -7 -7 -7 ------------ Run | Scr Mat Min Exi Min Mat Gar Fac Was Fac Low Used RIF Installer 1 | . . . . . . 1 . . . . Robots Hacked 7 | . . . . . . . 1 6 . . Non-combat 1 | . . . . . . . 1 . . . Combat 6 | . . . . . . . . 6 . . Robot Hacks Applied 8 | . . . . . . . 1 7 . . find_chute 1 | . . . . . . . 1 . . . ignore_targets 7 | . . . . . . . . 7 . . Relay Couplers Released 16 | . . . . . . 15 . . 1 . Machine Destruction 16 | . . . . . . 15 . . 1 . Attached 3 | . . . . . . . . 1 2 . Robots Rewired . | . . . . . . . . . . . Allies Hacked . | . . . . . . . . . . . Hacks Repelled . | . . . . . . . . . . . Allies | -11 -10 -10 -10 -9 -8 -8 -7 -7 -7 -7 -------- Run | Scr Mat Min Exi Min Mat Gar Fac Was Fac Low Total Allies 18 | . . . . . . . . 18 . . Largest Group 18 | . . . . . . . . 18 15 . Highest-Rated Group 456 | . . . . . . . . 456 371 . Highest-Rated Ally 36 | . . . . . . . . 36 36 . Total Orders . | . . . . . . . . . . . Ally Attacks 249 | . . . . . . . . 106 143 . Total Damage 3605 | . . . . . . . . 1620 1985 . Kills 16 | . . . . . . . . 3 13 . Allies Corrupted . | . . . . . . . . . . . Allies Melted . | . . . . . . . . . . . Intel | -11 -10 -10 -10 -9 -8 -8 -7 -7 -7 -7 ------- Run | Scr Mat Min Exi Min Mat Gar Fac Was Fac Low Robot Analysis Total 1 | . 1 . . . . . . . . . Derelict Logs Recovered 2 | . . . . 2 . . . . . . Drone Launches . | . . . . . . . . . . . Drone Recoveries . | . . . . . . . . . . . Exploration | -11 -10 -10 -10 -9 -8 -8 -7 -7 -7 -7 ------------- Run | Scr Mat Min Exi Min Mat Gar Fac Was Fac Low Turns Passed 8102 | . 146 321 490 445 668 2155 617 1404 1220 636 Spaces Moved 3817 | 1 102 150 286 190 227 964 296 596 643 362 Core 38 | . . . . . . . . . 34 4 Treads 2314 | . 22 150 286 190 227 186 . 298 609 346 Legs 1465 | 1 80 . . . . 778 296 298 . 12 Wheels . | . . . . . . . . . . . Hover . | . . . . . . . . . . . Flight . | . . . . . . . . . . . Fastest Speed 50 | 120 120 160 160 200 180 180 180 150 50 50 Average Speed 174 | 120 128 160 167 200 180 186 180 172 167 157 Slowest Speed 250 | 120 160 160 200 200 180 210 180 210 250 160 Overloaded Moves . | . . . . . . . . . . . Propulsion Burnouts . | . . . . . . . . . . . Robots Hopped . | . . . . . . . . . . . Cave-ins Triggered . | . . . . . . . . . . . Exploration Rate (%) 40 | 2 28 33 59 35 13 99 8 97 22 47 Regions Visited 10 Branch Regions 4 Pre-discovered Areas 2 | . . . 1 1 . . . . . . Known Exits Taken 1 | . . . . . 1 . . . . . Unknown Exits Taken 6 | 1 1 1 1 1 . . . . 1 . Scrap Searched 1 | . . . . . . . . . . 1 Spaces Dug 10 | . . . . . . . . . 10 . Terrain Destroyed 178 | . . 9 . 28 14 92 . . 35 . Melee . | . . . . . . . . . . . Projectile 17 | . . . . . . . . . 17 . AOE 161 | . . 9 . 28 14 92 . . 18 . Actions | -11 -10 -10 -10 -9 -8 -8 -7 -7 -7 -7 --------- Run | Scr Mat Min Exi Min Mat Gar Fac Was Fac Low Total 4743 | . 112 185 298 227 390 1194 361 864 714 398 Wait 238 | . . 10 1 10 46 3 . 146 9 13 Move 3807 | . 101 149 285 189 227 961 296 595 642 362 Hop . | . . . . . . . . . . . Pick Up 107 | . 2 . 8 6 21 41 11 16 2 . Fast Attach 36 | . 2 1 1 . 4 7 6 6 7 2 Attach 33 | . . . . 1 8 11 2 9 1 1 Detach 1 | . . . . . . . . 1 . . Swap 50 | . . 1 . 4 8 17 11 4 5 . Drop 97 | . 4 1 3 1 16 29 21 16 6 . Fire 236 | . 3 23 . 16 60 79 13 4 36 2 Melee 86 | . . . . . . . 1 67 . 18 Ram . | . . . . . . . . . . . Kick . | . . . . . . . . . . . Crush 4 | . . . . . . . . . 4 . Escape Stasis 48 | . . . . . . 46 . . 2 . Rewire . | . . . . . . . . . . . Trap . | . . . . . . . . . . . Miscellaneous . | . . . . . . . . . . . Route ------- -11/Scrapyard -10/Materials -10/Mines (discovered 3 exits: [*Mat x2] / *Exi) -10/Exiles (discovered 2 exits: [*Min x2]) -9/Mines -8/Materials -8/Garrison (discovered 3 exits: *Fac x3) -7/Factory -7/Waste -7/Factory (discovered 3 exits: [*Sto] / [*Low x2]) -7/Lower Caves History --------- Turn | Location | Event 1 | -11/Scrapyard | Discovered new exit (range 0) 1 | -11/Scrapyard | Entered Materials 61 | -10/Materials | Discovered new exit (range 11) 147 | -10/Materials | Entered Mines 233 | -10/Mines | Discovered new exit (range 10) 285 | -10/Mines | Discovered new exit (range 9) 310 | -10/Mines | Build established: Mutant 460 | -10/Mines | Deemed a non-threat by the Exiles lab entrance 461 | -10/Mines | Discovered new exit (range 5) 468 | -10/Mines | Entered Exiles 492 | -10/Exiles | Discovered new exit (range 15) 537 | -10/Exiles | Met 8R-AWN 564 | -10/Exiles | Met EX-HEX 611 | -10/Exiles | Met EX-BIN 761 | -10/Exiles | Met EX-DEC 769 | -10/Exiles | Learned location of Zion (-7) 934 | -10/Exiles | Discovered new exit (range 14) 958 | -10/Exiles | Entered Mines 969 | -9/Mines | Met a Derelict bent on vengeance 1073 | -9/Mines | Learned 4 Materials zone layouts 1127 | -9/Mines | Build established: Hauler-Mutant 1259 | -9/Mines | Core integrity fell below 50% 1385 | -9/Mines | Discovered new exit (range 7) 1403 | -9/Mines | Entered Materials 1403 | -8/Materials | Evolved 4 slots: Propulsion x1, Utility x2, Weapon x1 1475 | -8/Materials | Garrison activated, responded to threat 1847 | -8/Materials | Garrison activated, responded to threat 1889 | -8/Materials | Lost 3 parts (2n1u) 1977 | -8/Materials | Build established: Scavenger-Tank 2071 | -8/Materials | Identified exit to Garrison 2071 | -8/Materials | Entered Garrison 2165 | -8/Garrison | Lost 5 parts (1n1u3w) 2202 | -8/Garrison | Triggered checkpoint 2234 | -8/Garrison | Garrison Relay disabled 2388 | -8/Garrison | Build established: Scavenger-Gunner 2404 | -8/Garrison | Triggered checkpoint 2480 | -8/Garrison | Discovered new exit (range 9) 2526 | -8/Garrison | Triggered checkpoint 2570 | -8/Garrison | Garrison Relay disabled 2710 | -8/Garrison | Triggered checkpoint 2762 | -8/Garrison | Discovered new exit (range 12) 2800 | -8/Garrison | Installed Relay Interface Framework 2866 | -8/Garrison | Triggered checkpoint 2898 | -8/Garrison | Garrison Relay disabled 3132 | -8/Garrison | Triggered checkpoint 3204 | -8/Garrison | Garrison Relay disabled 3250 | -8/Garrison | Discovered new exit (range 14) 3513 | -8/Garrison | Phase Generator disabled 3754 | -8/Garrison | Triggered checkpoint 3934 | -8/Garrison | Triggered checkpoint 4226 | -8/Garrison | Entered Factory 4226 | -7/Factory | Evolved 2 slots: Utility x2 4712 | -7/Factory | Build established: Bothacker-Tank 4843 | -7/Factory | Sucked down chute 4843 | -7/Factory | Entered Waste 4864 | -7/Waste | Spotted C-40 Crusher 4891 | -7/Waste | Spotted C-40 Crusher 4905 | -7/Waste | Spotted C-40 Crusher 4906 | -7/Waste | Crushed by Compactor (0 parts destroyed, 1 dropped) 4911 | -7/Waste | Spotted C-40 Crusher 4921 | -7/Waste | Crushed by Compactor (1 part destroyed, 2 dropped) 4925 | -7/Waste | Crushed by Compactor (1 part destroyed, 1 dropped) 4930 | -7/Waste | Crushed by Compactor (1 part destroyed) 4961 | -7/Waste | Lost 5 parts (2n2u1w) 5026 | -7/Waste | Spotted C-40 Crusher 5145 | -7/Waste | Build established: Bothacker-Mutant 5174 | -7/Waste | Spotted C-40 Crusher 5218 | -7/Waste | Destroyed C-40 Crusher 5393 | -7/Waste | Destroyed C-40 Crusher 5496 | -7/Waste | Destroyed C-40 Crusher 5554 | -7/Waste | Warlord forces began an assault 5946 | -7/Waste | Discovered new exit (range 16) 6247 | -7/Waste | Entered Factory 6247 | -7/Factory | Accompanied by 15 allies 6366 | -7/Factory | Discovered new exit (range 10) 6552 | -7/Factory | Build established: Bothacker-Gunner 6757 | -7/Factory | Discovered new exit (range 7) 7047 | -7/Factory | First assault squad dispatched 7329 | -7/Factory | Discovered new exit (range 13) 7336 | -7/Factory | High security lockdown imminent 7416 | -7/Factory | High security lockdown engaged 7439 | -7/Factory | Released all parts (4) 7455 | -7/Factory | Core integrity fell below 50% 7467 | -7/Factory | Entered Lower Caves 7475 | -7/Lower Caves | Lost 6 parts (1p1n2u2w) 7717 | -7/Lower Caves | Build established: Mutant 8070 | -7/Lower Caves | Core integrity fell below 20% 8103 | -7/Lower Caves | Destroyed by G-47 Trooper with Particle Gun Last Messages --------------- 07522_ Acquired 23 matter. 07525_ Acquired Autogun. 07543_ Searching scrap... 07543_ Found 39 Matter. 07543_ Found Plasma Cutter. 07544_ Acquired 39 matter. 07684_ Acquired 1 matter. 08067_ Hvy. Treads destroyed. 08067_ Autogun destroyed. 08068_ G-47 Trooper knocked back. 08069_ Relay Coupler [NC] destroyed. 08071_ G-47 Trooper destroyed. 08078_ Particle Gun fries itself beyond repair. 08078_ Lgt. Nuclear Core fries itself beyond repair. 08084_ Aluminum Leg fries itself beyond repair. 08084_ G-50 Soldier destroyed. 08087_ Acquired Carbon-fiber Leg. 08089_ Carbon-fiber Leg fries itself beyond repair. 08089_ Acquired 11 matter. 08090_ Impact Mace destroyed. Map ----- +----------------------------------------------------+ | ?????????????????????????????????????????????????? | | ?????????????????????????????????????????????????? | | ?????????????????????????????????????????????????? | | ?????????????????????????????????????????????????? | | ?????????????????????????????????????????????????? | | ?????????????????????????????????????????????????? | | ?????????????????????????????????????????????????? | | ?????????????????????????????????????????????????? | | ???????????????????????##????????????????????????? | | ????????????????????### ###??? +?????????????????? | | ???????????????????## ##? +?????????????????? | | ???????????????????# ## #?????????????????? | | ???????????????????# #?????????????????? | | ???????????????????# #?????????????????? | | ????????????????#### #?????????????????? | | ????????????????? #?????????????????? | | ?????????????????# ##????????????????? | | ?????????????????# ????????? ?????# | | ??????????????????# # ???????? ?????# | | ?????????????###### #?# #?????? #?????# | | ?????????????# #???# ?????? #?????# | | ?????????# ## #????# ????? #?????# | | #### ### ##?????# ##??? #?????# | | ????# #?## ## ##?????# ##?# ##????? | | ????# #??##### ######## ## #??### | | ????# #?????# @ ###%% ##### | | ????### ????## ### ## | | ??????## ### #### #???## ## ## | | ???????###??###???###????## g ### | | ??????????????????????????## g ##?# | | ???????????????????????????## # ####??## # | | ????????????????????????????###### ####???######? | | ?????????????????????????????????# ##????????? | | ????????????????????????????###### ##???????? | | ???????????????????????????## #???????? | | ??????????????????????????## ### #????? | | ??????????????????????????# ##??# ##????? | | ??????????????????????????# ###????# #?????? | | ??????????????????????????# ####????# ##??#### | | ??????????????????????????# #?????##???# # | | ??????????????????????????## #??????????# | | ???????????????????????????# #####??????# | | ???????????????????????????# ## #??????# | | ???????????????????????????# ####??## | | ???????????????????????????# ## #?## | | ???????????????????????????## ### | | ???????????????????????????## ### | | ??????????????????????????## ##?# # | | ??????????????????????????# #??# ## ## | | ??????????????????????????# ### ### ####? | +----------------------------------------------------+ Best States ------------- Heat Dissipation 64 Energy Generation 21 Energy Capacity 325 Matter Stores 300 Matter Capacity 300 Sight Range 16 Terrain Scan Density 10 Armor Coverage 1200 Propulsion Shielding 66 Evasion (%) 50 Targeting Accuracy 6 Recoil Reduction 3 Item Schematics ----------------- None Robot Schematics ------------------ None Fabricated ------------ Nothing Alien Tech Used ----------------- None Achievements -------------- None Challenges ------------ None Game ------ Seed LauncherSniperNanovents Manual? 0 Play Time 00:54:16 Cumulative 177.6 hours Start 2020.07.01 @ 22:29:55 End 2020.07.02 @ 00:52:45 Sessions 3 Manual Loads 0 Difficulty Rogue Special Mode None Game No. 98 Rogue 96 Adventurer 1 Explorer 1 Win Type - Total 2 Types 2/0/0/0/0/0/0 Lore% 62 Gallery% 75 Achievement% 54 Wizard Run 0 Options --------- ASCII 0 Keyboard 1 Movement Numpad Keybinds 1 Fullscreen 2 Font 24/Terminus Map View 76x50 Tactical HUD 1 Map Filters NONE Filters NONE Steam 1 RUN: 8ade2b04-4064-46cd-b212-ea1b4e1a32d2